Cogmind - Beta 9.4 @@@ ROGUE MODE // 2020.02.04 @ 17:30:17 Player: OccultOnion Result: Destroyed by G-34 Mercenary with Small Laser Performance ------------- Evolutions (1) 500 Regions Visited (3) 600 Robots Destroyed (31) 155 Value Destroyed (971) 971 Prototype IDs (1) 20 Alien Tech Used (0) 0 Bonus (0) 0 TOTAL SCORE: 2246 Bonus ------- None Cogmind --------- Core Integrity 0/400 Matter 300/300 Energy 100/100 System Corruption 3% Temperature Cool (6) Movement Core (550) Ox10 Location -9/Storage Parts ------- > --- POWER (1) -------- (None) > --- PROPULSION (3) --- (None) > --- UTILITY (3) ------ Heat Sink High-capacity Storage Unit > --- WEAPON (2) ------- (None) > --- INVENTORY (12) --- Ion Engine Light Ion Engine Light Ion Engine Aluminum Leg Aluminum Leg Hacking Suite Small Laser Datajack Katana Peak State ------------ > --- POWER ------------ Ion Engine > --- PROPULSION ------- Light Treads Aluminum Leg Wheel > --- UTILITY ---------- High-capacity Storage Unit Improved Sensor Array Improved Terrain Scanner > --- WEAPON ----------- Heavy EM Pulse Gun Particle Gun > --- INVENTORY -------- Light Ion Engine Light Ion Engine Aluminum Leg Aluminum Leg Aluminum Leg Shield Generator Small Laser Assault Rifle Light Assault Rifle Datajack [Rating: 14] Favorites ----------- Power Light Ion Engine Engine Light Ion Engine Propulsion Aluminum Leg Treads Light Treads Leg Aluminum Leg Wheel Wheel Utility Improved Terrain Scanner Device Improved Terrain Scanner Storage Small Storage Unit Weapon Assault Rifle Energy Gun Small Laser Energy Cannon Advanced Beam Cannon Ballistic Gun Assault Rifle Build | -11 -10 -9 -9 ------- Run | Scr Mat Mat Sto Slots Evolved 2 | . . 2 . Power . | . . . . Propulsion 1 | . . 1 . Utility 1 | . . 1 . Weapon . | . . . . Parts Attached 22 | 7 . 13 2 Power 2 | 1 . 1 . Engine 2 | 1 . 1 . Core . | . . . . Reactor . | . . . . Propulsion 6 | 2 . 4 . Treads 2 | . . 2 . Leg 3 | 2 . 1 . Wheel 1 | . . 1 . Hover . | . . . . Flight . | . . . . Utility 6 | 2 . 4 . Device 4 | 1 . 3 . Storage 2 | 1 . 1 . Processor . | . . . . Hackware . | . . . . Protection . | . . . . Artifact . | . . . . Weapon 8 | 2 . 4 2 Energy Gun 3 | 1 . 2 . Energy Cannon 1 | . . . 1 Ballistic Gun 4 | 1 . 2 1 Ballistic Cannon . | . . . . Launcher . | . . . . Special Weapon . | . . . . Impact Weapon . | . . . . Slashing Weapon . | . . . . Piercing Weapon . | . . . . Special Melee Weapon . | . . . . Unidentified Prototypes 1 | . . . 1 Parts Lost 17 | . . 8 9 Power 2 | . . 1 1 Propulsion 5 | . . 2 3 Utility 3 | . . 2 1 Weapon 7 | . . 3 4 Highest Loss Streak 8 | . . 4 8 Average Slot Usage (%) 94 | . 100 95 87 Engine 11 | . 14 10 9 Treads 5 | . . 7 7 Leg 18 | . 28 16 8 Wheel 6 | . . 8 9 Device 18 | . 14 20 21 Storage 11 | . 14 11 11 Energy Gun 10 | . 14 9 6 Ballistic Gun 11 | . 14 10 10 Naked Turns . | . . . . Heaviest Build 46 | 11 11 44 46 Greatest Support 20 | 20 20 20 10 Greatest Overweight (x) 13 | . . 4 13 Average Overweight (x) 1 | . . 2 4 Largest Inventory Capacity 12 | 6 6 12 12 Average Capacity 8 | 5 6 10 12 Most Carried 10 | 6 6 10 10 Average Carried 6 | 3 5 6 8 Final Capacity 12 | 6 6 12 12 Final Carried 9 | 5 6 8 9 Class Distribution -------------------- 100% | Mutant Dominant Class ---------------- Mutant | -10/Materials Mutant | -9/Materials Mutant | -9/Storage Resources | -11 -10 -9 -9 ----------- Run | Scr Mat Mat Sto Matter Collected 583 | 264 60 200 59 Remotely . | . . . . Salvage Created 1138 | 25 122 603 388 Parts 75 | 3 10 44 18 Haulers Intercepted . | . . . . Recyclers Shooed . | . . . . Parts Field Recycled . | . . . . Retrieved Matter . | . . . . Parts Self-Destructed . | . . . . Prevented . | . . . . Kills | -11 -10 -9 -9 ------- Run | Scr Mat Mat Sto Combat Hostiles Destroyed 27 | . 3 16 8 Guns 23 | . 3 16 4 Cannons 3 | . . . 3 AOE 1 | . . . 1 Classes Destroyed 8 | 1 2 4 1 Tunneler 1 | 1 . . . Operator 2 | . 1 . 1 Watcher 1 | . . 1 . Swarmer 3 | . . 3 . Grunt 20 | . 3 11 6 Brawler 1 | . . 1 . Duelist 1 | . . . 1 Sentry 2 | . . 1 1 Best Kill Streak 4 | 1 1 4 3 Combat Bots Only 4 | . 1 4 3 Max Kills in Single Turn 1 | 1 1 1 1 Gunslinging . | . . . . Exploded 1 | . . . 1 Melee . | . . . . Uniques/NPCs Destroyed . | . . . . Combat | -11 -10 -9 -9 -------- Run | Scr Mat Mat Sto Damage Taken 1761 | . 172 582 1007 Core 419 | . 11 25 383 Absorbed by Shields 173 | . . . 173 Core Remaining (%) 97 | 100 95 . . Volleys Fired 93 | 4 14 47 28 Largest 2 | 2 2 2 2 Hottest 110 | 60 60 110 88 Shots Fired 178 | 8 28 88 54 Gun 166 | 8 28 88 42 Cannon 12 | . . . 12 Launcher . | . . . . Special . | . . . . Kinetic 85 | 4 14 40 27 Thermal 65 | 4 14 35 12 Explosive . | . . . . Electromagnetic 28 | . . 13 15 Robot Hit Streak 9 | 4 6 9 9 Robot Miss Streak 4 | 3 2 3 4 Penetration Max . | . . . . Secondary Targets 3 | . . 3 . Max Gunslinging Chain 1 | . . 1 . Shots Hit Robots 108 | 4 19 54 31 Core Hits 49 | 1 8 26 14 Critical Hits 3 | . . . 3 Critical Kills 2 | . . . 2 Critical Parts Destroyed 1 | . . . 1 Melee Attacks . | . . . . Impact . | . . . . Slashing . | . . . . Piercing . | . . . . Sneak Attacks . | . . . . Combat Hostiles . | . . . . Follow-up Attacks . | . . . . Damage Inflicted 1523 | 72 203 667 581 Guns 1248 | 72 203 662 311 Cannons 164 | . . . 164 Explosions 106 | . . . 106 Melee . | . . . . Ramming 5 | . . 5 . Kinetic 488 | 39 80 247 122 Thermal 703 | 33 123 312 235 Explosive 35 | . . . 35 Electromagnetic 292 | . . 103 189 Impact . | . . . . Slashing . | . . . . Piercing . | . . . . Highest Corruption 3 | . . . 3 Average Corruption 2 | . . . 2 Corruption Purged . | . . . . Effects 3 | . . . 3 Message Errors 1 | . . . 1 Matter Fused 1 | . . . 1 Weapon Failures 1 | . . . 1 Overload Shots . | . . . . Overflow Damage 5 | . . . 5 Projectiles . | . . . . Explosions 5 | . . . 5 Melee . | . . . . Knockbacks . | . . . . Impact . | . . . . Kinetic . | . . . . Secondary . | . . . . Self-Inflicted Damage 118 | . . 2 116 Shots 2 | . . . 2 Rammed 1 | . . 1 . Targets Rammed 1 | . . 1 . Kicked . | . . . . Crushed . | . . . . Highest Temperature 300 | . 54 300 11 Average Temperature 73 | . 28 93 4 Received Heat Transfer 768 | . 96 237 435 Effects 1 | . . 1 . Energy Bleed 1 | . . 1 . Siege Activations . | . . . . Robots Corrupted . | . . . . Combat Hostiles . | . . . . Parts Fried 1 | . . . 1 Impact Corruptions . | . . . . Robots Melted . | . . . . Combat Hostiles . | . . . . Parts Melted 1 | . . . 1 Heat Transferred 1450 | 75 275 754 346 Parts Sabotaged . | . . . . Parts Stolen . | . . . . Parts Stripped . | . . . . Power Chain Reactions 1 | . . . 1 Missiles Intercepted . | . . . . Alert | -11 -10 -9 -9 ------- Run | Scr Mat Mat Sto Peak Influence 289 | 5 102 289 280 Average Influence 110 | 1 52 139 182 Maximum Alert Level 1 | . . 1 1 Low Security (%) 80 | 100 100 78 48 Level 1 19 | . . 21 51 Level 2 . | . . . . Level 3 . | . . . . Level 4 . | . . . . Level 5 . | . . . . High Security . | . . . . Max Security . | . . . . Squads Dispatched 9 | . 3 3 3 Investigation 3 | . 1 1 1 Extermination . | . . . . Reinforcement 6 | . 2 2 2 Assault . | . . . . Garrison . | . . . . Intercept . | . . . . Construction Impeded . | . . . . Haulers Reinforced . | . . . . Stealth | -11 -10 -9 -9 --------- Run | Scr Mat Mat Sto Distress Signals 3 | . . 2 1 Communications Jammed . | . . . . Distress Signals . | . . . . Times Spotted 52 | . 7 26 19 Peak Tracking Total 8 | . 2 6 8 Tactical Retreats 2 | . . 1 1 Traps | -11 -10 -9 -9 ------- Run | Scr Mat Mat Sto Traps Triggered 4 | . 1 . 3 Indirectly . | . . . . Trap Hack Attempts . | . . . . Triggered . | . . . . Disarmed . | . . . . Reprogrammed . | . . . . Reused . | . . . . Traps Extracted . | . . . . Installed . | . . . . Triggered . | . . . . Machines | -11 -10 -9 -9 ---------- Run | Scr Mat Mat Sto Machines Disabled 2 | . . . 2 Max in Single Turn 1 | . . . 1 Machines Sabotaged . | . . . . Garrisons Compromised . | . . . . Overloaded Fab Kills . | . . . . Fab Network Shutdowns . | . . . . Hacking | -11 -10 -9 -9 --------- Run | Scr Mat Mat Sto Machines Accessed 5 | . 2 2 1 Terminals 5 | . 2 2 1 Fabricators . | . . . . Repair Stations . | . . . . Recycling Units . | . . . . Scanalyzers . | . . . . Garrison Access . | . . . . Total Hacks 15 | . 6 6 3 Successful 9 | . 2 4 3 Failed 6 | . 4 2 . Catastrophic 1 | . . 1 . Database Lockouts . | . . . . Manual 10 | . 3 5 2 Terminals 15 | . 6 6 3 Fabricators . | . . . . Repair Stations . | . . . . Recycling Units . | . . . . Scanalyzers . | . . . . Garrison Access . | . . . . Terminal Hacks 9 | . 2 4 3 Level Access Points 2 | . 1 . 1 Alert Level 4 | . 1 2 1 Unreport Threat 1 | . . 1 . Zone Layout 2 | . . 1 1 Fabricator Hacks . | . . . . Repair Station Hacks . | . . . . Recycling Unit Hacks . | . . . . Scanalyzer . | . . . . Garrison Access Hacks . | . . . . Unauthorized Hacks . | . . . . Terminals . | . . . . Fabricators . | . . . . Repair Stations . | . . . . Recycling Units . | . . . . Scanalyzers . | . . . . Garrison Access . | . . . . Data Cores Recovered . | . . . . Used . | . . . . Hacking Detections 4 | . 2 2 . Full Trace Events 2 | . 1 1 . Feedback Events . | . . . . Feedback Blocked . | . . . . Robot Schematics Acquired . | . . . . Robots Built . | . . . . Matter . | . . . . Time . | . . . . Total Robot Build Rating . | . . . . Part Schematics Acquired . | . . . . Parts Built . | . . . . Matter . | . . . . Time . | . . . . Total Part Build Rating . | . . . . Parts Repaired . | . . . . Time . | . . . . Parts Recycled . | . . . . Recycled Matter . | . . . . Retrieved Matter . | . . . . Retrieved Components . | . . . . Parts Scanalyzed . | . . . . Part Schematics Acquired . | . . . . Parts Damaged . | . . . . Bothacking | -11 -10 -9 -9 ------------ Run | Scr Mat Mat Sto Used RIF Installer . | . . . . Robots Hacked . | . . . . Non-combat . | . . . . Combat . | . . . . Robot Hacks Applied . | . . . . Relay Couplers Released . | . . . . Robots Rewired . | . . . . Allies Hacked . | . . . . Hacks Repelled . | . . . . Allies | -11 -10 -9 -9 -------- Run | Scr Mat Mat Sto Total Allies . | . . . . Largest Group . | . . . . Highest-Rated Group . | . . . . Highest-Rated Ally . | . . . . Total Orders . | . . . . Ally Attacks . | . . . . Total Damage . | . . . . Kills . | . . . . Allies Corrupted . | . . . . Allies Melted . | . . . . Intel | -11 -10 -9 -9 ------- Run | Scr Mat Mat Sto Robot Analysis Total . | . . . . Derelict Logs Recovered . | . . . . Drone Launches . | . . . . Drone Recoveries . | . . . . Exploration | -11 -10 -9 -9 ------------- Run | Scr Mat Mat Sto Turns Passed 1216 | 115 329 543 229 Spaces Moved 614 | 64 203 260 87 Core 10 | 5 . . 5 Treads . | . . . . Legs 348 | 59 203 86 . Wheels 256 | . . 174 82 Hover . | . . . . Flight . | . . . . Fastest Speed 50 | 50 120 90 120 Average Speed 120 | 114 120 114 146 Slowest Speed 700 | 120 120 120 700 Overloaded Moves . | . . . . Propulsion Burnouts . | . . . . Robots Hopped . | . . . . Cave-ins Triggered . | . . . . Exploration Rate (%) 20 | 4 33 25 19 Regions Visited 3 Branch Regions 1 Pre-discovered Areas . | . . . . Known Exits Taken 1 | . 1 . . Unknown Exits Taken 2 | 1 . 1 . Scrap Searched . | . . . . Spaces Dug . | . . . . Terrain Destroyed 12 | . . . 12 Melee . | . . . . Projectile . | . . . . AOE 12 | . . . 12 Actions | -11 -10 -9 -9 --------- Run | Scr Mat Mat Sto Total 913 | 97 261 418 137 Wait 152 | 11 42 82 17 Move 611 | 63 202 259 87 Hop . | . . . . Pick Up 31 | 12 2 14 3 Fast Attach . | . . . . Attach 19 | 7 . 10 2 Detach . | . . . . Swap 3 | . . 3 . Drop 3 | . 1 2 . Fire 93 | 4 14 47 28 Melee . | . . . . Ram 1 | . . 1 . Kick . | . . . . Crush . | . . . . Escape Stasis . | . . . . Rewire . | . . . . Trap . | . . . . Miscellaneous . | . . . . Route ------- -11/Scrapyard -10/Materials (discovered 3 exits: *Mat x3) -9/Materials -9/Storage (discovered 1 exit: Mat) History --------- Turn | Location | Event 2 | -11/Scrapyard | Met Revision 17 21 | -11/Scrapyard | Discovered new exit (range 15) 116 | -11/Scrapyard | Entered Materials 312 | -10/Materials | Build established: Mutant 430 | -10/Materials | Identified exit to Materials 445 | -10/Materials | Entered another Materials area 445 | -9/Materials | Evolved 2 slots: Propulsion x1, Utility x1 795 | -9/Materials | Lost 3 parts (1p1n1w) 946 | -9/Materials | Lost 4 parts (1n2u1w) 948 | -9/Materials | Discovered new exit (range 15) 988 | -9/Materials | Entered Storage 1087 | -9/Storage | Identified exit to Materials 1204 | -9/Storage | Core integrity fell below 50% 1214 | -9/Storage | Core integrity fell below 20% 1217 | -9/Storage | Destroyed by G-34 Mercenary with Small Laser Last Messages --------------- 01150_ Terminal disabled. 01151_ A=ZUXL9O5AV3%NE%KNPRNLT2&S 01153_ G-34 Mercenary suffers critical hit. 01153_ Destroyed Aluminum Leg. 01154_ Aluminum Leg destroyed. 01157_ R-06 Scavenger collects Terrain Scanner. 01158_ R-06 Scavenger collects Welding Torch. 01158_ G-34 Mercenary suffers critical hit. 01158_ Aluminum Leg melted. 01158_ G-34 Mercenary destroyed. 01161_ R-06 Scavenger collects Terrain Scan Processor. 01169_ Acquired 36 matter. 01171_ Ion Engine destroyed. 01171_ Acquired Katana. 01172_ U-05 Engineer lays Concrete. 01181_ System corrupted: Matter fused (-9). 01189_ Wheel destroyed. 01191_ Shield Generator destroyed. 01193_ Assault Rifle destroyed. 01195_ Adv. Beam Cannon destroyed. Map ----- +----------------------------------------------------+ | ???????????????????????????????????????????????? | | ???????????????????????????????????????????????? | | ???????????????????????????????????????????????? | | ???????????????????????????????????????????????? | | ???????????????????????????????????????????????? | | ???????????????????????????????????????????????? | | ???????????????????????????????????????????????? | | ???????????????????????????????????????????????? | | ???????????????????????????????????????????????? | | ???????????????????????????????????????????????? | | ???????????????????????????????????????????????? | | ???????????# ??????????????????????????????????? | | ??????????## ##############?############?????? | | ???????#### ###############"T"## #?????? | | ????? "%%* ^ #?????? | | ????? "=% % ^^ T #?????? | | ????? *=% #?????? | | ????????### ###### ############# #?????? | | ??????????###/#####??# #??########### ##?????? | | ????????????? #??# #??# # #??????? | | ????????????? #??# #??# # #??###?? | | ????????????? #??# #### """"" =#! ####%### | | ????????????? #??# Y # """"" [%% # =!* # | | ????????????? #??# g # """"" [# # ! # | | ????????????? #??# # # # # | | ????????????? #??# @# # # # | | ????????????? #??# # # # !!! # | | ?????????????#######?#gg ##T#"Y"#### # !! # | | ????????????? #?# ####"""#??# # !! # | | ????????????? #?# #??#####??# # # | | ????????????? ### ########### # # | | ????????????? / # # | | ????????????? ### ##### % # | | ?????????????+######## #???# = # | | ????????????? + + #???# # | | ????????????? # # ######## #???# # ## | | ????????????? # # #??????# #???# ### ###? | | ????????????? + # #???####+##### #T####?? | | ????????????? # # #???# # +%"]]#?? | | ????????????? # # ##### """" # #= ]#?? | | ????????????? #####+## + " "" # # "]]#?? | | ????????????? #???# ##### " """ # ######?? | | ????????????? #???# #???# """ " / ####???? | | ??????????????????????????????????" # #??????? | | ??????????????????????????????????" # #??????? | | ?????????????????????????????????? ?# #??????? | | ????????????????????????????????? ?# #??????? | | ????????????????????????????????##??# #??????? | | ????????????????????????????????????#####??????? | | ???????????????????????????????????????????????? | +----------------------------------------------------+ Best States ------------- Heat Dissipation 38 Energy Generation 10 Energy Capacity 250 Matter Stores 300 Matter Capacity 300 Sight Range 16 Robot Scan Range 13 Terrain Scan Range 16 Terrain Scan Density 10 Evasion (%) 42 Item Schematics ----------------- None Robot Schematics ------------------ None Fabricated ------------ Nothing Alien Tech Used ----------------- None Achievements -------------- None Challenges ------------ None Game ------ Seed SwarmIonDissipator Manual? 0 Play Time 00:11:43 Cumulative 32.0 hours Start 2020.02.04 @ 17:18:49 End 2020.02.04 @ 17:30:17 Sessions 1 Manual Loads 0 Difficulty Rogue Special Mode None Game No. 80 Rogue 80 Adventurer 0 Explorer 0 Win Type - Total 0 Types 0/0/0/0/0/0/0 Lore% 19 Gallery% 37 Achievement% 23 Wizard Run 0 Options --------- ASCII 0 Keyboard 0 Movement Numpad Keybinds 0 Fullscreen 1 Font 18/SmallcapsGlow Map View 76x50 Tactical HUD 1 Map Filters NONE Filters NONE Steam 1 RUN: 82248656-73a0-4f34-a251-ba11b2cb36ac